bitfinex-derivatives/quotes_ETHF0:USTF0_20250704
["timestamp","ask_amount","ask_price","bid_price","bid_amount"]
[1751666776079,3.39776167,2500.1,2499.4,1.99991]
[1751666776285,2.7787,2500.0,2499.8,0.79985]
[1751666776485,0.6888,2499.9,2499.8,0.79985]
[1751666776782,0.6888,2499.9,2499.6,0.60994833]
[1751666776783,0.79988,2499.8,2499.6,0.60994833]
[1751666776980,2.0069,2499.9,2499.6,0.79993]
[1751666776981,1.3181,2499.7,2499.6,0.79993]
[1751666777684,0.6888,2499.9,2499.8,0.79986]
[1751666779588,0.6888,2499.9,2499.3,14.6238]
[1751666779782,0.6888,2499.9,2499.4,0.79996]
[1751666779783,0.79989,2499.8,2499.4,0.79996]
[1751666779989,1.3173,2499.7,2499.5,0.79995]
[1751666780484,1.3173,2499.7,2499.1,0.80007]
[1751666780485,0.8,2499.4,2499.1,0.80007]
[1751666780680,1.3173,2499.7,2498.8,1.4327]
[1751666780986,0.79993,2499.6,2499.3,0.80001]
[1751666781187,2.11726,2499.5,2499.3,0.80001]
[1751666781582,0.69,2499.4,2499.3,0.80001]
[1751666781784,0.69,2499.4,2498.9,2.00038]
[1751666781785,2.0073,2499.4,2498.8,1.4327]
[1751666782090,2.0073,2499.4,2499.3,0.80002]
[1751666790796,0.69,2499.4,2499.3,0.80002]
[1751666793095,0.69,2499.4,2498.9,3.2078]
[1751666793301,2.0754,2499.3,2498.9,3.2078]
[1751666793501,2.0754,2499.3,2499.2,0.80005]
[1751666793704,2.0754,2499.3,2499.1,0.80007]
[1751666793899,0.80005,2499.2,2499.1,0.80007]
[1751666794096,1.3995,2499.2,2499.1,0.80007]
[1751666798105,0.6759,2499.3,2499.2,0.80005]
[1751666798304,1.90770495,2499.3,2499.1,0.80007]
[1751666798604,2.03186495,2499.2,2499.0,0.80011]
[1751666798799,0.80005,2499.2,2499.0,0.80011]
[1751666799005,2.1102,2499.3,2499.0,0.80011]
[1751666799206,0.80009,2499.1,2499.0,0.80011]
[1751666799405,2.0332635,2499.1,2499.0,0.80011]
[1751666799607,1.2331735,2499.1,2499.0,0.80011]
[1751666800409,2.0332635,2499.1,2499.0,0.80011]
[1751666801606,0.80016,2498.9,2498.5,3.2078]
[1751666801806,0.80023,2498.7,2498.6,0.80022]
[1751666802207,3.2078,2498.9,2498.2,1.3473]
[1751666802407,1.3897,2498.6,2498.2,1.3473]
[1751666802610,1.3897,2498.6,2498.5,0.80028]
[1751666802611,2.18995,2498.6,2498.5,0.80028]
[1751666802806,5.83454178,2498.6,2498.2,2.14764]
[1751666803011,5.83454178,2498.6,2498.4,0.80031]
[1751666803012,2.03733178,2498.5,2498.4,0.80031]
[1751666803212,0.80034,2498.3,2498.2,0.80035]
[1751666803413,0.80033,2498.4,2498.2,0.80035]
[1751666803811,0.80033,2498.4,2498.3,0.80034]
[1751666804514,0.80033,2498.4,2498.2,0.80034]
[1751666804713,3.2078,2498.9,2498.3,3.2078]
[1751666804912,2.03669885,2498.8,2498.6,0.80023]
[1751666805112,0.8002,2498.8,2498.4,1.3248]
[1751666805319,0.8002,2498.8,2498.7,0.80021]
[1751666805614,2.03672508,2498.8,2498.6,0.80022]
[1751666805815,0.8002,2498.8,2498.4,1.3248]
[1751666806514,0.8002,2498.8,2498.6,0.80022]
[1751666806917,0.8002,2498.8,2498.4,1.3248]
[1751666807113,0.8002,2498.8,2498.6,0.80022]
[1751666807814,4.00797,2498.9,2498.7,0.80021]
[1751666808013,1.23735566,2498.8,2498.7,0.80021]
[1751666809112,2.03753566,2498.8,2498.7,0.80021]
[1751666809418,1.23735566,2498.8,2498.7,0.80021]
[1751666815521,1.90485566,2498.8,2498.7,0.80021]
[1751666816721,1.23735566,2498.8,2498.7,0.80021]
[1751666817321,3.2078,2498.9,2498.8,0.80018]
[1751666817622,4.44625302,2498.9,2498.8,0.80018]
[1751666819622,3.2078,2498.9,2498.8,0.80018]
[1751666828320,0.6959,2499.3,2499.0,2.0003]
[1751666828321,3.2078,2499.2,2499.0,2.0003]
[1751666828624,0.6959,2499.3,2499.2,0.80005]
[1751666828819,3.2078,2499.7,2499.2,2.00014]
[1751666829125,1.23894673,2499.6,2499.5,0.79996]
[1751666829326,3.2078,2499.7,2499.6,0.79993]
[1751666830819,0.6981,2499.9,2499.8,0.79986]
[1751666845938,0.6806,2500.0,2499.9,0.79983]
[1751666852937,0.6869,2500.4,2500.3,0.7997]
[1751666855235,3.2078,2501.1,2500.3,5.0]
[1751666855436,2.55195164,2501.0,2500.9,0.79949]
[1751666855839,1.318,2501.0,2500.9,0.79949]
[1751666858945,7.55084049,2501.0,2500.2,3.2078]
[1751666859146,6.66788589,2500.9,2500.6,0.79959]
[1751666859449,5.43494,2500.9,2500.6,0.79959]
[1751666859747,5.43494,2500.9,2500.2,3.2078]
[1751666859748,4.6354,2500.9,2500.8,0.79954]
[1751666860443,4.6354,2500.9,2500.7,0.79957]
[1751666860644,5.43492,2500.9,2500.7,0.79957]
[1751666860839,0.79956,2500.8,2500.6,0.79959]
[1751666861042,1.4276,2500.7,2500.6,0.79959]
[1751666864049,2.22717,2500.7,2500.6,0.79959]
[1751666864351,1.4276,2500.7,2500.6,0.79959]
[1751666866057,4.00733,2500.9,2500.7,0.79955]
[1751666866259,4.00733,2500.9,2500.8,0.79954]
[1751666866557,5.23954634,2500.9,2500.8,0.79954]
[1751666866754,6.63224634,2500.9,2500.7,0.79955]
[1751666866954,5.40003,2500.9,2500.7,0.79955]
[1751666867457,5.40003,2500.9,2500.8,0.79954]
[1751666867655,6.6323058,2500.9,2500.7,0.79955]
[1751666867860,0.79954,2500.8,2500.7,0.79955]
[1751666868156,5.40003,2500.9,2500.8,0.79954]
[1751666868355,5.83287356,2500.9,2500.2,15.2442]
[1751666868557,0.79954,2500.8,2500.6,0.79959]
[1751666868758,1.4149,2500.7,2500.6,0.79959]
[1751666869661,2.21447,2500.7,2500.6,0.79959]
[1751666870360,1.4149,2500.7,2500.2,3.2078]
[1751666870659,5.14506471,2500.6,2499.9,14.5848]
[1751666870858,3.26456471,2500.5,2499.9,14.5848]
[1751666871054,0.79969,2500.4,2500.3,0.79969]
[1751666871252,2.18119,2500.4,2500.3,0.79969]
[1751666872959,0.79973,2500.3,2499.9,3.2078]
[1751666873159,2.18123,2500.3,2499.9,3.2078]
[1751666873454,0.6818,2500.2,2500.0,0.79978]
[1751666873660,0.79978,2500.1,2500.0,0.79978]
[1751666873864,2.86306,2500.2,2500.1,0.79977]
[1751666875363,2.0633,2500.2,2499.6,5.2728]
[1751666875564,0.79981,2500.0,2499.9,0.79981]
[1751666875859,2.0633,2500.2,2499.6,3.2078]
[1751666876064,0.79985,2499.9,2499.8,0.79985]
[1751666876460,1.47905,2499.9,2499.8,0.79985]
[1751666877162,1.47905,2499.9,2499.6,3.2078]
[1751666877163,0.79987,2499.8,2499.7,0.79987]
[1751666877357,1.48407,2499.8,2499.7,0.79987]
[1751666877560,0.6842,2499.8,2499.7,0.79987]
[1751666878166,0.6842,2499.8,2499.7,0.79989]
[1751666879466,0.6792,2499.9,2499.8,0.79986]
[1751666879660,3.2078,2500.0,2499.9,0.79983]
[1751666880757,3.9139,2500.3,2500.2,0.79973]
[1751666880962,3.2078,2500.3,2500.2,0.79973]
[1751666881962,0.6941,2500.4,2500.3,0.7997]
[1751666883768,3.2078,2500.6,2500.1,1.99942]
[1751666883965,3.2078,2500.6,2500.5,0.79964]
[1751666884660,3.2078,2500.6,2500.2,1.9955]
[1751666884866,4.00743,2500.6,2500.3,0.7997]
[1751666885168,0.79967,2500.4,2499.9,3.2078]
[1751666885362,4.505,2500.6,2500.0,2.039]
[1751666885566,5.30462,2500.6,2500.4,0.79964]
[1751666885968,3.2078,2500.6,2500.1,1.99942]
[1751666886168,1.50568,2500.7,2500.2,1.3146]
[1751666886366,1.23453109,2500.6,2500.2,1.3146]
[1751666886672,0.7061,2500.7,2500.6,0.79961]
[1751666886861,1.23473892,2500.7,2500.6,0.79961]
[1751666887368,3.2078,2500.9,2500.8,0.79954]
[1751666887571,4.4426693,2500.9,2500.8,0.79954]
[1751666887766,4.4426693,2500.9,2500.4,2.0337]
[1751666887973,1.2348693,2500.8,2500.4,2.0337]
[1751666888272,1.2348693,2500.8,2500.7,0.79957]
[1751666888571,0.79958,2500.7,2500.6,0.79961]
[1751666888760,1.2348693,2500.7,2500.6,0.79961]
[1751666888963,4.00733,2500.9,2500.7,0.79957]
[1751666889168,1.23512695,2500.8,2500.7,0.79957]
[1751666889369,2.03466695,2500.8,2500.7,0.79957]
[1751666889565,3.39786695,2500.8,2500.7,0.79957]
[1751666891261,2.59832695,2500.8,2500.7,0.79957]
[1751666891466,1.23512695,2500.8,2500.7,0.79957]
[1751666892965,3.2078,2500.9,2500.8,0.79954]
[1751666896973,3.2078,2501.7,2501.0,1.9987]
[1751666897275,2.62500045,2501.6,2501.4,0.79933]
[1751666897473,1.3912,2501.6,2501.5,0.79932]
[1751666897771,2.62451208,2501.6,2501.5,0.79932]
[1751666899667,3.42382208,2501.6,2501.5,0.79932]
[1751666900165,3.42382208,2501.6,2501.1,1.99859]
[1751666900366,4.44111208,2501.5,2501.4,0.79935]
[1751666900574,5.24045208,2501.5,2501.4,0.79935]
[1751666902575,4.44111208,2501.5,2501.4,0.79935]
[1751666903373,1.3912,2501.6,2501.5,0.79932]
[1751666903572,2.6215332,2501.6,2501.5,0.79932]
[1751666905579,1.3912,2501.6,2501.5,0.79932]
[1751666906176,0.679,2501.6,2501.5,0.79932]
[1751666906879,3.2078,2501.8,2501.7,0.79925]
[1751666907277,1.4013,2501.9,2501.5,0.79932]
[1751666907278,0.6945,2501.9,2501.8,0.79922]
[1751666907582,3.2078,2502.1,2502.0,0.79916]
[1751666908573,1.4013,2502.2,2502.0,0.79916]
[1751666908773,3.2078,2502.5,2502.4,0.79903]
[1751666908978,5.1023289,2502.5,2502.4,0.79903]
[1751666909176,0.6945,2502.9,2502.4,0.79903]
[1751666909177,2.38534913,2503.0,2502.4,5.0]
[1751666909376,2.38534913,2503.0,2502.2,3.2078]
[1751666909377,3.2078,2503.7,2502.9,3.2078]
[1751666909573,0.6918,2503.5,2502.9,3.2078]
[1751666909777,0.6918,2503.5,2503.0,0.79882]
[1751666909979,0.79872,2503.4,2503.1,0.7988]
[1751666910182,3.2078,2503.4,2502.6,3.2078]
[1751666910476,1.4905,2503.5,2503.1,0.7988]
[1751666910676,1.49049,2503.5,2503.1,0.79878]
[1751666911082,0.6918,2503.5,2503.2,0.79876]
[1751666911278,1.49049,2503.5,2503.3,0.79874]
[1751666911584,12.0488,2503.5,2503.0,1.4261]
[1751666911782,0.79874,2503.4,2503.2,0.79876]
[1751666912081,14.21259,2503.5,2503.0,1.4261]
[1751666912281,0.79872,2503.4,2503.2,0.79877]
[1751666912485,13.4139,2503.5,2503.0,1.4261]
[1751666912677,13.4139,2503.5,2503.0,2.22492]
[1751666912876,13.4139,2503.5,2503.0,1.4261]
[1751666913072,0.79884,2503.0,2502.9,3.2078]
[1751666913279,13.4139,2503.5,2502.9,4.00664]
[1751666913479,0.79881,2503.1,2502.9,4.00664]
[1751666913678,0.79884,2503.0,2502.9,3.2078]
[1751666914283,2.0569,2503.5,2502.9,3.2078]
[1751666914486,0.79876,2503.3,2503.0,0.79884]
[1751666914686,0.79876,2503.3,2503.1,0.7988]
[1751666914879,15.40862,2503.5,2502.9,3.2078]
[1751666915185,0.79884,2503.0,2502.9,3.2078]
[1751666915382,1.99678,2503.4,2502.6,5.33964]
[1751666915585,4.5336,2503.3,2502.7,0.79892]
[1751666915983,0.7989,2502.9,2502.7,0.79892]
[1751666917081,0.7989,2502.8,2502.6,3.2078]
[1751666917383,0.7989,2502.9,2502.6,4.00675]
[1751666917684,0.79886,2503.0,2502.6,3.2078]
[1751666917984,0.79886,2503.0,2502.7,0.79892]
[1751666918484,0.79886,2503.0,2502.8,0.79889]
[1751666918680,0.79891,2502.8,2502.6,3.2078]
[1751666919074,0.79885,2503.0,2502.6,3.2078]
[1751666919278,0.79885,2503.0,2502.8,0.79888]
[1751666919674,0.79885,2503.0,2502.7,1.392]
[1751666919878,0.79885,2503.0,2502.9,0.79887]
[1751666920086,0.79885,2503.0,2502.8,0.79888]
[1751666920384,0.79887,2502.9,2502.8,0.79888]
[1751666920584,0.79887,2502.9,2502.7,2.19091]
[1751666920882,0.79887,2502.9,2502.8,0.7989]
[1751666921486,0.7989,2502.8,2502.7,0.79892]
[1751666922687,0.691,2503.1,2502.8,0.7989]
[1751666922688,0.79889,2502.9,2502.8,0.7989]
[1751666923688,0.79893,2502.7,2502.6,3.2078]
[1751666923884,0.79903,2502.4,2502.3,3.2078]
[1751666924085,0.79899,2502.6,2502.4,0.79901]
[1751666924382,0.79897,2502.6,2502.4,0.79901]
[1751666924580,0.79897,2502.6,2502.5,0.799]
[1751666924777,0.6824,2502.7,2502.3,3.2078]
[1751666924984,1.48136,2502.7,2502.3,3.2078]
[1751666925384,1.48136,2502.7,2502.6,0.79897]
[1751666925385,1.48133,2502.7,2502.6,0.79897]
[1751666925781,0.6824,2502.7,2502.6,4.00677]
[1751666925985,0.79892,2502.8,2502.7,0.79893]
[1751666926485,0.79895,2502.7,2502.6,0.79896]
[1751666926780,0.79887,2502.9,2502.6,3.2078]
[1751666926982,12.1595,2503.0,2502.8,0.79888]
[1751666927184,12.1595,2503.0,2502.7,0.79891]
[1751666927387,12.1595,2503.0,2502.6,3.2078]
[1751666927687,12.1595,2503.0,2502.8,0.79889]
[1751666928083,0.79887,2502.9,2502.8,0.79889]
[1751666928283,12.95836,2503.0,2502.9,0.79887]
[1751666928490,0.79888,2502.9,2502.6,3.8557]
[1751666928681,0.79888,2502.9,2502.7,1.4192]
[1751666928887,12.95836,2503.0,2502.8,0.79888]
[1751666929082,12.95836,2503.0,2502.9,0.79887]
[1751666929289,12.1595,2503.0,2502.9,0.79887]
[1751666930982,0.79883,2503.1,2502.7,1.4192]
[1751666931484,0.79883,2503.1,2503.0,0.79884]
[1751666931881,4.00658,2503.2,2503.0,0.79884]
[1751666932285,3.2078,2503.2,2503.1,0.79881]
[1751666932689,4.39617068,2503.2,2503.1,0.79881]
[1751666933084,1.3452,2503.4,2502.9,5.20498]
[1751666933085,2.14392,2503.4,2502.9,5.20498]
[1751666933288,1.18833589,2503.3,2503.2,0.79875]
[1751666933885,1.18833589,2503.3,2503.2,4.00655]
[1751666934087,11.472,2503.7,2503.6,0.79865]
[1751666934288,1.18901073,2503.7,2503.6,0.79865]
[1751666934488,1.18901073,2503.7,2503.5,4.00646]
[1751666934683,1.18901073,2503.6,2503.5,4.00646]
[1751666934883,0.79874,2503.4,2503.1,1.412]
[1751666935089,0.79868,2503.6,2503.4,0.7987]
[1751666935291,1.18979627,2503.5,2503.4,0.7987]
[1751666935583,1.18979627,2503.5,2503.4,5.7987]
[1751666935793,0.18802328,2503.8,2503.7,0.79862]
[1751666936593,0.18802328,2503.8,2503.4,3.2078]
[1751666936892,1.19114211,2503.7,2503.5,0.79865]
[1751666937092,0.98663328,2503.8,2503.5,0.79865]
[1751666937292,0.79868,2503.6,2503.3,0.79872]
[1751666937489,0.79871,2503.4,2503.3,0.79872]
[1751666937696,1.19177812,2503.4,2503.3,0.79873]
[1751666938284,0.6604,2503.5,2503.4,0.79871]
[1751666938490,1.8527311,2503.5,2503.4,0.79871]
[1751666940493,0.6604,2503.5,2503.4,0.79871]
[1751666940895,0.18802328,2503.8,2503.4,5.0]
[1751666941101,0.18802328,2503.8,2503.7,0.79862]
[1751666941496,0.18802328,2503.8,2503.7,4.00642]
[1751666941791,1.37671642,2503.8,2503.7,4.00642]
[1751666941996,0.18802328,2503.8,2503.7,4.00642]
[1751666942498,0.18802328,2503.8,2503.7,9.00642]
[1751666942995,3.28e-06,2503.8,2503.7,9.33124765]
[1751666943200,2.38660544,2505.0,2504.9,0.79823]
[1751666943398,1.18711796,2505.0,2504.9,4.00603]
[1751666943604,0.6606,2505.7,2504.9,8.2078]
[1751666943793,0.6606,2505.7,2505.5,0.79804]
[1751666943794,1.18345739,2505.6,2505.5,0.79804]
[1751666944094,1.18345739,2505.6,2505.3,3.2078]
[1751666944095,1.18333486,2505.6,2505.3,3.2078]
[1751666944403,4.5705,2506.2,2505.3,8.2078]
[1751666944701,4.5705,2506.2,2505.4,3.2078]
[1751666944896,1.18062065,2506.1,2505.7,0.79797]
[1751666945095,1.3422,2506.0,2505.7,0.79797]
[1751666945295,3.2078,2506.2,2505.4,3.2078]
[1751666945496,0.79787,2506.1,2505.4,3.2078]
[1751666945695,1.3422,2506.1,2505.7,0.79797]
[1751666945903,1.3422,2506.1,2505.4,3.2078]
[1751666946201,3.41414924,2506.5,2505.8,3.2078]
[1751666946398,3.41414924,2506.5,2506.0,0.79788]
[1751666946697,0.79783,2506.2,2505.8,4.00572]
[1751666946903,0.79783,2506.2,2505.2,2.69788]
[1751666946904,0.79776,2506.4,2506.1,3.2078]
[1751666947202,0.20634924,2506.5,2506.4,0.79776]
[1751666947403,1.99347,2507.6,2506.4,0.79776]
[1751666947404,2.38660544,2507.5,2506.4,8.2078]
[1751666947592,1.16472339,2507.4,2506.7,3.2078]
[1751666947797,0.79777,2506.4,2506.2,3.2078]
[1751666947993,3.2078,2507.0,2506.2,3.2078]
[1751666948297,0.7976,2506.9,2506.5,3.2078]
[1751666948497,2.0748,2506.9,2506.2,4.00561]
[1751666948801,2.0748,2506.9,2506.2,3.2078]
[1751666949000,0.79782,2506.2,2505.8,4.00573]
[1751666949197,11.463,2506.5,2505.8,3.2078]
[1751666949397,0.79802,2505.6,2505.4,3.2078]
[1751666949598,0.79804,2505.5,2505.4,3.2078]
[1751666950395,0.79804,2505.5,2504.6,11.463]
[1751666950396,0.79812,2505.3,2505.1,3.2078]
[1751666950598,6.59678,2505.8,2504.8,3.2078]
[1751666950801,0.79821,2505.0,2504.8,3.2078]
[1751666950997,0.79823,2504.9,2504.8,3.2078]
[1751666951198,3.2078,2505.2,2504.4,3.2078]
[1751666951406,0.79827,2504.8,2504.4,4.00618]
[1751666951604,2.7486,2505.1,2504.4,4.00619]
[1751666951804,2.7486,2505.1,2504.5,0.79836]
[1751666952006,2.7486,2505.1,2504.6,0.52110848]
[1751666952301,0.79827,2504.8,2504.7,0.52110848]
[1751666953509,0.79827,2504.8,2504.7,0.52139034]
[1751666953906,2.15317,2504.8,2504.7,0.52139034]
[1751666956507,6.3549,2504.8,2504.1,3.2078]
[1751666956707,0.79834,2504.6,2504.1,3.2078]
[1751666957016,11.657,2504.7,2504.4,0.79839]
[1751666957223,0.79835,2504.6,2504.4,0.79839]
[1751666957411,12.45531,2504.7,2504.4,0.79839]
[1751666957609,0.79833,2504.6,2504.4,0.79839]
[1751666957814,2.21823,2504.6,2504.4,0.79839]
[1751666958113,1.4199,2504.6,2504.1,4.00628]
[1751666958413,4.6277,2504.6,2504.1,3.2078]
[1751666958614,0.79846,2504.2,2504.1,3.2078]
[1751666959123,0.79845,2504.3,2504.1,3.2078]
[1751666959318,0.79845,2504.3,2504.1,4.00628]
[1751666959926,0.79846,2504.2,2504.1,3.2078]
[1751666960111,2.84324,2504.3,2504.1,4.00629]
[1751666960722,11.659,2504.5,2504.4,0.79839]
[1751666962122,11.659,2504.5,2504.3,0.7984]
[1751666962318,0.79841,2504.4,2504.2,0.79844]
[1751666962515,2.82921,2504.4,2504.2,0.79844]
[1751666962919,0.79842,2504.3,2504.1,4.00627]
[1751666963115,0.7053,2504.4,2504.3,0.79842]
[1751666963315,1.3255,2504.9,2504.8,0.79827]
[1751666963517,1.4081,2505.1,2505.0,0.7982]
[1751666963919,2.20627,2505.1,2504.9,0.79822]
[1751666964219,2.0283,2505.1,2504.6,1.99583]
[1751666964422,2.7124,2505.1,2505.0,0.7982]
[1751666965014,2.7124,2505.1,2504.8,0.79824]
[1751666965213,2.7124,2505.1,2504.7,0.79828]
[1751666965423,2.7124,2505.1,2504.6,0.79832]
[1751666965622,0.7983,2504.7,2504.6,0.79833]
[1751666965823,2.7124,2505.1,2504.2,3.2078]
[1751666965824,0.79841,2504.4,2504.2,3.2078]
[1751666966027,1.358,2504.6,2504.3,0.79842]
[1751666966220,0.79841,2504.4,2504.2,3.2078]
[1751666966620,0.79842,2504.3,2504.2,0.79843]
[1751666966825,0.7112,2504.5,2503.9,3.2078]
[1751666967026,50.04129,2504.8,2504.3,1.99607]
[1751666967217,1.358,2504.9,2504.8,0.79827]
[1751666967419,3.8645,2505.0,2504.9,0.79823]
[1751666967420,15.5235,2505.0,2504.9,0.79823]
[1751666968723,0.79828,2504.8,2504.7,0.79829]
[1751666968928,2.15365,2504.9,2504.8,0.79827]
[1751666969320,1.3554,2504.9,2504.2,3.2078]
[1751666969630,0.79829,2504.8,2504.6,0.79831]
[1751666969923,0.79829,2504.8,2504.2,6.5655]
[1751666969924,0.79829,2504.8,2504.7,0.7983]
[1751666970520,0.7983,2504.7,2504.6,0.79831]
[1751666970720,0.7983,2504.7,2504.2,4.5694]
[1751666970921,0.79828,2504.8,2504.3,1.99606]
[1751666971122,0.79824,2504.9,2504.5,3.2078]
[1751666971322,0.79824,2504.9,2504.8,0.79825]
[1751666971521,2.14194,2504.9,2504.8,0.79825]
[1751666971723,2.14194,2504.9,2504.7,0.79827]
[1751666971724,0.79827,2504.8,2504.7,0.79827]
[1751666972324,1.3437,2504.9,2504.5,3.2078]
[1751666972525,0.79828,2504.8,2504.7,0.79828]
[1751666973225,2.14196,2504.9,2504.8,0.79827]
[1751666973425,1.3437,2504.9,2504.5,3.2078]
[1751666973727,0.79828,2504.8,2504.7,0.79828]
[1751666974125,0.7983,2504.7,2504.6,0.79831]
[1751666974527,0.79829,2504.8,2504.7,0.79829]
[1751666976128,1.3437,2504.9,2504.5,3.2078]
[1751666976327,2.10292,2504.7,2504.6,0.79832]
[1751666977829,39.60792,2504.7,2504.6,0.79832]
[1751666978529,0.79833,2504.6,2504.5,4.00614]
[1751666978726,38.8096,2504.7,2504.1,3.8624]
[1751666978923,2.82938,2504.5,2504.4,0.79839]
[1751666979127,0.6779,2504.5,2504.4,0.79839]
[1751666979437,3.2078,2504.7,2504.6,0.79833]
[1751666979733,4.38321888,2504.7,2504.6,0.79833]
[1751666980130,1.17541888,2504.7,2504.6,0.79833]
[1751666981939,38.1711,2505.1,2504.7,1.99575]
[1751666982231,0.7171,2505.1,2505.0,0.7982]
[1751666982434,1.89205178,2505.1,2505.0,0.7982]
[1751666983836,1.17495178,2505.1,2505.0,0.7982]
[1751666984437,1.17495178,2505.1,2504.8,4.5104]
[1751666984638,1.99559,2504.9,2504.3,3.2078]
[1751666984940,50.20595178,2504.8,2504.7,0.7983]
[1751666985231,39.30085178,2504.8,2504.7,0.7983]
[1751666985633,1.17495178,2504.8,2504.7,4.0061]
[1751666986029,1.17495178,2504.8,2504.7,9.0061]
[1751666986235,15.4917,2505.2,2505.1,0.79817]
[1751666986236,14.8138,2505.2,2505.1,0.79817]
[1751666986433,15.98723407,2505.2,2505.1,0.79817]
[1751666988028,1.17343407,2505.2,2505.1,4.00597]
[1751666988233,1.17343407,2505.2,2505.1,9.00597]
[1751666988740,2.38660544,2506.0,2505.9,0.79791]
[1751666988933,1.17277219,2506.0,2505.9,0.79789]
[1751666989134,1.17277219,2506.0,2505.9,5.79791]
[1751666989329,0.79778,2506.4,2505.6,0.6555]
[1751666989529,1.17167249,2506.3,2506.2,0.79782]
[1751666990137,3.2078,2506.5,2506.4,0.79776]
[1751666990340,4.37825268,2506.5,2506.4,0.79776]
[1751666990638,4.37825268,2506.5,2505.9,4.06699]
[1751666990639,0.79777,2506.4,2506.1,0.79783]
[1751666990838,1.3737,2506.4,2506.0,0.79787]
[1751666991541,0.79787,2506.1,2505.8,4.00572]
[1751666991841,0.79791,2505.9,2505.5,4.00582]
[1751666992238,0.79791,2505.9,2505.5,4.00583]
[1751666992439,2.8762,2506.0,2505.5,4.00583]
[1751666992740,1.331,2505.9,2505.5,4.00583]
[1751666992938,1.331,2505.9,2505.2,4.6207]
[1751666993241,0.79811,2505.3,2505.2,3.2078]
[1751666994336,0.7982,2505.0,2504.8,4.00605]
[1751666994537,0.79833,2504.6,2504.5,3.2078]
[1751666994741,39.6076,2504.9,2504.5,3.2078]
[1751666994941,0.79831,2504.7,2504.5,4.00615]
[1751666995742,39.6076,2504.9,2504.5,3.2078]
[1751666996040,0.79831,2504.7,2504.5,4.00615]
[1751666997443,0.79831,2504.7,2504.6,0.79833]
[1751666997642,0.79831,2504.7,2504.5,4.00615]
[1751666997843,0.79829,2504.8,2504.6,0.79833]
[1751666998240,0.709,2504.7,2504.6,0.79833]
[1751666999536,37.607,2504.9,2504.8,0.79827]
[1751666999740,3.2078,2505.5,2505.4,0.79807]
[1751666999941,0.79806,2505.5,2504.9,2.1222]
[1751667000143,0.79803,2505.6,2505.5,0.79804]
[1751667000442,37.592,2505.6,2505.5,0.79804]
[1751667000642,0.79804,2505.5,2505.0,3.2078]
[1751667000839,0.79804,2505.5,2505.0,4.6195]
[1751667001143,37.59,2505.6,2505.5,0.79804]
[1751667002939,0.709,2505.7,2505.6,0.79801]
[1751667003139,38.299,2505.7,2505.6,0.79801]
[1751667003448,45.26689058,2505.7,2504.9,2.70605]
[1751667003744,1.3315,2505.6,2505.5,0.79803]
[1751667004339,2.12951,2505.6,2505.5,0.79803]
[1751667004539,1.3315,2505.6,2505.4,0.79805]
[1751667004739,2.12953,2505.6,2505.0,3.2078]
[1751667004941,1.3315,2505.6,2505.5,0.79804]
[1751667005136,38.9325,2505.6,2505.5,0.79804]
[1751667005334,39.73051,2505.6,2505.5,0.79804]
[1751667005643,0.79804,2505.5,2505.4,0.79805]
[1751667005944,2.14714,2505.5,2505.4,0.79805]
[1751667006145,0.79812,2505.3,2505.2,0.79814]
[1751667006338,4.5569,2505.5,2505.4,0.79807]
[1751667006646,5.7254668,2505.5,2505.4,0.79807]
[1751667006843,42.1269,2505.5,2505.4,0.79807]
[1751667007145,38.9191,2505.5,2505.2,0.79812]
[1751667007353,0.79811,2505.3,2505.2,0.79812]
[1751667007541,42.1269,2505.5,2504.8,1.99564]
[1751667007542,4.00585,2505.5,2505.4,0.79807]
[1751667007744,0.79812,2505.3,2505.2,0.79813]
[1751667008139,1.3913,2505.4,2505.0,3.2078]
[1751667008345,0.79817,2505.1,2505.0,3.2078]
[1751667008649,38.37417,2505.1,2505.0,3.2078]
[1751667009043,0.79823,2505.0,2504.8,0.79826]
[1751667009243,2.84363,2505.0,2504.8,0.79825]
[1751667009449,0.79823,2504.9,2504.8,0.79825]
[1751667010251,0.79827,2504.8,2504.7,0.79828]
[1751667010451,2.0454,2505.0,2504.4,1.99592]
[1751667010452,0.7983,2504.7,2504.6,0.79831]
[1751667010747,0.79829,2504.8,2504.7,0.79829]
[1751667010952,0.7983,2504.7,2504.6,0.79831]
[1751667011152,37.555,2504.7,2504.6,0.79831]
[1751667011454,38.3533,2504.7,2504.6,0.79831]
[1751667011652,37.555,2504.7,2504.6,0.79831]
[1751667011854,37.555,2504.7,2504.3,3.2078]
[1751667012048,37.555,2504.7,2504.3,4.5108]
[1751667012248,37.555,2504.7,2504.6,0.79833]
[1751667012552,37.555,2504.7,2504.3,3.2078]
[1751667012750,38.952,2504.7,2504.3,3.2078]
[1751667013145,0.79837,2504.5,2504.4,0.79839]
[1751667014058,0.79839,2504.4,2504.3,3.2078]
[1751667014251,0.79839,2504.4,2504.3,4.00622]
[1751667014755,0.79839,2504.4,2504.3,3.2078]
[1751667014954,0.79847,2504.2,2503.9,4.5108]
[1751667015256,0.79847,2504.2,2503.9,3.2078]
[1751667015661,0.6576,2504.2,2504.0,0.79852]
[1751667015851,0.7985,2504.1,2504.0,0.79852]
[1751667016451,1.45607,2504.2,2504.1,0.79849]
[1751667016851,1.45607,2504.2,2504.0,0.7985]
[1751667017052,1.45607,2504.2,2504.1,0.79849]
[1751667017352,1.45607,2504.2,2504.0,0.7985]
[1751667017551,0.6576,2504.2,2503.9,3.2078]